bitfinex/quotes_BTCUSD_20250814
["timestamp","ask_amount","ask_price","bid_price","bid_amount"]
[1755178191915,0.21096388,118160.0,118150.0,0.02539]
[1755178192122,0.21419388,118160.0,118150.0,0.02539]
[1755178192363,0.21096388,118160.0,118150.0,0.02539]
[1755178193028,0.0426975,118160.0,118150.0,0.19572473]
[1755178193243,0.21195951,118160.0,118150.0,0.19466634]
[1755178193414,0.0426975,118160.0,118150.0,0.19466634]
[1755178194567,0.0436975,118160.0,118150.0,0.19566634]
[1755178194791,0.0436975,118160.0,118150.0,0.19890634]
[1755178195235,0.003,118160.0,118150.0,0.36130634]
[1755178195475,0.0436975,118160.0,118150.0,0.36130634]
[1755178196587,0.003,118160.0,118150.0,0.36130634]
[1755178196836,0.003,118160.0,118150.0,0.37476959]
[1755178197058,0.003,118160.0,118150.0,0.74015659]
[1755178197954,0.003,118160.0,118150.0,0.90247659]
[1755178198874,0.003,118160.0,118150.0,0.90571659]
[1755178200498,0.00323,118220.0,118210.0,0.16919042]
[1755178200741,0.0406975,118210.0,118190.0,0.00324]
[1755178200993,0.0406975,118200.0,118190.0,0.16921905]
[1755178201473,0.0406975,118190.0,118180.0,0.1776694]
[1755178201684,0.0406975,118200.0,118190.0,0.16921905]
[1755178201910,0.0406975,118200.0,118190.0,0.19460105]
[1755178202154,0.20990223,118200.0,118190.0,0.025382]
[1755178202375,0.0406975,118190.0,118180.0,0.1776694]
[1755178202589,0.0406975,118190.0,118180.0,0.2030524]
[1755178202806,0.21314655,118190.0,118180.0,0.025383]
[1755178203019,0.86472782,118190.0,118180.0,0.025383]
[1755178203276,0.21314655,118190.0,118180.0,0.025383]
[1755178203511,0.35031293,118190.0,118180.0,0.025383]
[1755178203754,0.0406975,118170.0,118160.0,0.17772495]
[1755178204248,0.0439275,118170.0,118150.0,0.33127557]
[1755178204481,0.0406975,118170.0,118160.0,0.19570813]
[1755178204716,0.18088082,118210.0,118190.0,0.16921253]
[1755178204938,0.0406975,118200.0,118190.0,0.16921253]
[1755178205169,0.0439275,118210.0,118200.0,0.16920473]
[1755178205406,0.0406975,118200.0,118190.0,0.1692184]
[1755178205632,0.0439275,118200.0,118190.0,0.16921905]
[1755178205899,0.0406975,118210.0,118200.0,0.16920473]
[1755178206128,0.0406975,118230.0,118220.0,0.16917178]
[1755178206360,0.0406975,118220.0,118210.0,0.16919042]
[1755178206584,0.17770037,118240.0,118220.0,0.16916891]
[1755178206810,0.17770037,118240.0,118230.0,0.17021679]
[1755178206811,0.0406975,118240.0,118230.0,0.17021679]
[1755178207030,0.20984499,118240.0,118230.0,0.1691618]
[1755178207256,0.1691618,118230.0,118210.0,0.17764994]
[1755178207475,0.003,118230.0,118220.0,0.17023155]
[1755178207694,0.0436975,118230.0,118220.0,0.17017611]
[1755178208154,0.04915559,118230.0,118200.0,0.17766496]
[1755178208383,0.0406975,118220.0,118200.0,0.16184]
[1755178208603,0.21290361,118220.0,118200.0,0.16920077]
[1755178208819,0.21290361,118220.0,118210.0,0.17024631]
[1755178208820,0.0406975,118220.0,118210.0,0.17024631]
[1755178209066,0.0406975,118220.0,118210.0,0.16919042]
[1755178209282,0.0406975,118220.0,118210.0,0.33099042]
[1755178209495,0.20987361,118220.0,118200.0,0.679461]
[1755178209746,0.0437275,118220.0,118210.0,0.16919042]
[1755178209966,0.0406975,118220.0,118210.0,0.16919042]
[1755178210433,0.02,118220.0,118210.0,0.16919042]
[1755178210655,0.1898593,118230.0,118210.0,0.16919042]
[1755178210656,0.2098593,118230.0,118210.0,0.16919042]
[1755178210878,0.0406975,118220.0,118210.0,0.16919042]
[1755178211112,0.2128893,118230.0,118220.0,0.16917611]
[1755178211351,0.2128893,118230.0,118210.0,0.16919042]
[1755178211591,0.0406975,118220.0,118210.0,0.16919042]
[1755178211839,0.20988792,118210.0,118190.0,0.17768]
[1755178212062,0.0406975,118210.0,118200.0,0.17026106]
[1755178212314,0.0437275,118220.0,118210.0,0.16919042]
[1755178213006,0.21554698,118220.0,118200.0,0.16920473]
[1755178213223,0.21290361,118220.0,118210.0,0.16919042]
[1755178213442,0.0406975,118210.0,118200.0,0.16920473]
[1755178213670,0.86449919,118210.0,118200.0,0.16920473]
[1755178213888,0.0406975,118210.0,118200.0,0.16920473]
[1755178214535,0.21287435,118220.0,118200.0,0.16920473]
[1755178214754,0.0406975,118210.0,118200.0,0.19458373]
[1755178214999,0.0426975,118210.0,118200.0,0.19458373]
[1755178215216,0.0426975,118210.0,118200.0,0.53774373]
[1755178215436,0.002,118210.0,118200.0,0.53774373]
[1755178215839,0.004,118210.0,118200.0,0.53874373]
[1755178216087,0.0446975,118210.0,118200.0,0.53874373]
[1755178216310,0.0446975,118210.0,118200.0,0.53558373]
[1755178216311,0.004,118210.0,118200.0,0.53558373]
[1755178216528,0.0446975,118210.0,118200.0,0.53558373]
[1755178217000,0.0406975,118210.0,118200.0,0.53458373]
[1755178217223,0.0406975,118220.0,118210.0,0.16917812]
[1755178217433,0.04637087,118220.0,118210.0,0.16919042]
[1755178218307,0.21554698,118220.0,118210.0,0.16919042]
[1755178218516,0.0437275,118220.0,118210.0,0.16919042]
[1755178218722,0.0406975,118230.0,118220.0,0.16916676]
[1755178218940,0.17759243,118250.0,118240.0,0.16914749]
[1755178219163,0.33354889,118260.0,118240.0,0.16914749]
[1755178219377,0.21247339,118250.0,118230.0,0.33901989]
[1755178219598,0.0406975,118240.0,118230.0,0.3487874]
[1755178219809,0.0406975,118240.0,118230.0,0.33901989]
[1755178220017,0.0406975,118240.0,118230.0,0.17761989]
[1755178220486,0.002,118250.0,118240.0,0.20295406]
[1755178220695,0.0406975,118250.0,118240.0,0.36431406]
[1755178221130,0.0406975,118250.0,118240.0,0.36531406]
[1755178221348,0.002,118260.0,118250.0,0.16913319]
[1755178221805,0.0426975,118260.0,118250.0,0.16913319]
[1755178222486,0.0406975,118260.0,118250.0,0.16913319]
[1755178222689,0.0403635,118260.0,118250.0,0.16913319]
[1755178222904,0.82916713,118280.0,118260.0,0.16911889]
[1755178222905,0.34189586,118280.0,118260.0,0.16911889]
[1755178223119,0.04300575,118270.0,118260.0,0.16911889]
[1755178223323,0.0403635,118270.0,118260.0,0.16911889]
[1755178223542,0.1775828,118290.0,118270.0,0.16910459]
[1755178223761,0.26333605,118290.0,118270.0,0.16910459]
[1755178223984,0.08272325,118290.0,118280.0,0.16909029]
[1755178224205,0.08272325,118290.0,118270.0,0.16910459]
[1755178224458,0.0403635,118280.0,118270.0,0.16910459]
[1755178225113,0.0403635,118280.0,118270.0,0.20024107]
[1755178225757,0.0403635,118280.0,118270.0,0.20996749]
[1755178225965,0.0403635,118280.0,118270.0,0.20024107]
[1755178226180,0.0403635,118280.0,118270.0,0.19446859]
[1755178226397,0.0403635,118280.0,118270.0,0.20024107]
[1755178226609,0.8563478,118310.0,118270.0,0.20024107]
[1755178226610,0.0453635,118290.0,118280.0,0.16909029]
[1755178226826,0.0403635,118290.0,118280.0,0.17225029]
[1755178227038,0.0403635,118290.0,118280.0,0.17486277]
[1755178227218,0.0443635,118280.0,118270.0,0.69654859]
[1755178227434,0.0443635,118280.0,118270.0,0.19546859]
[1755178227674,0.0403635,118280.0,118270.0,0.20024107]
[1755178228124,0.21248379,118280.0,118270.0,0.025364]
[1755178228339,0.0433935,118280.0,118270.0,0.19446859]
[1755178228776,0.21248379,118280.0,118270.0,0.025364]
[1755178228994,0.22993281,118280.0,118270.0,0.025364]
[1755178229207,0.96423733,118280.0,118270.0,0.025364]
[1755178229643,0.0403635,118260.0,118240.0,0.67856439]
[1755178229864,0.16913319,118250.0,118240.0,0.526328]
[1755178230108,0.21251253,118260.0,118240.0,0.69547549]
[1755178230322,0.0403635,118260.0,118250.0,0.17018729]
[1755178230540,0.0403635,118260.0,118250.0,0.16913319]
[1755178230965,0.0413635,118260.0,118250.0,0.16913319]
[1755178231180,0.001,118260.0,118250.0,0.25501644]
[1755178231411,0.0413635,118260.0,118250.0,0.00566168]
[1755178231626,0.0413635,118260.0,118250.0,0.17018711]
[1755178231846,0.0413635,118260.0,118250.0,0.17479487]
[1755178232086,0.16913319,118250.0,118240.0,0.186328]
[1755178232294,0.0403635,118250.0,118240.0,0.35547549]
[1755178232732,0.86410796,118250.0,118240.0,0.025368]
[1755178232947,1.12412023,118250.0,118240.0,0.025368]
[1755178233146,0.96328023,118250.0,118240.0,0.025368]
[1755178233733,0.96428023,118250.0,118240.0,0.025368]
[1755178233943,0.31269896,118250.0,118240.0,0.025368]
[1755178234153,0.96428023,118250.0,118240.0,0.025368]
[1755178234366,1.02995856,118250.0,118240.0,0.025368]
[1755178234578,0.96728023,118250.0,118240.0,0.026368]
[1755178234790,0.47653896,118250.0,118240.0,0.026368]
[1755178235004,1.12812023,118250.0,118240.0,0.026368]
[1755178235253,0.004,118250.0,118240.0,0.19551549]
[1755178235458,0.003,118250.0,118240.0,0.19551549]
[1755178235667,0.0423635,118250.0,118240.0,0.19551549]
[1755178235890,0.0443635,118250.0,118240.0,0.19551549]
[1755178236097,0.21349669,118250.0,118240.0,0.026368]
[1755178236312,0.0473935,118250.0,118240.0,0.19551549]
[1755178236736,0.0443635,118250.0,118240.0,0.19551549]
[1755178237087,0.21349669,118250.0,118240.0,0.19551549]
[1755178237320,0.0443635,118250.0,118240.0,0.19551549]
[1755178237526,0.21349669,118250.0,118240.0,0.026368]
[1755178237741,0.0443635,118250.0,118240.0,0.18908986]
[1755178237950,0.0443635,118250.0,118240.0,0.18803549]
[1755178238158,0.0443635,118250.0,118240.0,0.34871549]
[1755178238329,0.0443635,118250.0,118240.0,0.35449571]
[1755178238534,0.0443635,118250.0,118240.0,0.35172549]
[1755178240835,0.005,118250.0,118240.0,0.35172549]
[1755178241041,0.0443635,118250.0,118240.0,0.35172549]
[1755178241773,0.0443635,118250.0,118240.0,0.34871549]
[1755178241972,0.005,118250.0,118240.0,0.34871549]
[1755178242235,0.0443635,118250.0,118240.0,0.43444874]
[1755178242530,0.0443635,118250.0,118240.0,0.018888]
[1755178242768,0.88573698,118250.0,118240.0,0.018888]
[1755178242981,0.06181252,118250.0,118240.0,0.18908986]
[1755178243182,0.0443635,118250.0,118240.0,0.34855549]
[1755178243394,0.005,118250.0,118240.0,0.43428874]
[1755178243625,0.002,118250.0,118240.0,0.43328874]
[1755178243835,0.0433635,118250.0,118240.0,0.34855549]
[1755178244066,0.0433635,118250.0,118240.0,0.18803549]
[1755178244277,0.88737968,118250.0,118240.0,0.018888]
[1755178244477,0.88273698,118250.0,118240.0,0.017888]
[1755178244680,0.23215571,118250.0,118240.0,0.018888]
[1755178244972,0.23015571,118250.0,118240.0,0.18908986]
[1755178245233,0.23015571,118250.0,118240.0,0.018888]
[1755178245443,0.31364014,118250.0,118240.0,0.018888]
[1755178245648,1.38794466,118250.0,118240.0,0.018888]
[1755178245834,0.7518533,118250.0,118240.0,0.018888]
[1755178246057,1.40243457,118250.0,118240.0,0.017888]
[1755178246260,1.38694466,118250.0,118240.0,0.017888]
[1755178246438,1.41505584,118250.0,118240.0,0.001]
[1755178246681,1.41405551,118250.0,118240.0,0.001]
[1755178246897,0.20851099,118240.0,118230.0,0.025377]
[1755178247103,0.20851099,118240.0,118200.0,0.1704]
[1755178247104,0.20855392,118210.0,118200.0,0.1704]
[1755178247347,0.20855392,118210.0,118200.0,0.01]
[1755178247348,0.22921294,118210.0,118200.0,0.01]
[1755178247569,0.22921294,118210.0,118200.0,0.03538]
[1755178248030,1.22079421,118210.0,118200.0,0.01]
[1755178248720,0.65193619,118210.0,118200.0,0.00100001]
[1755178248943,1.30351746,118210.0,118200.0,1e-08]
[1755178249372,1.98309873,118210.0,118200.0,1e-08]
[1755178249828,1.99854633,118210.0,118200.0,1e-08]
[1755178250037,2.08103076,118210.0,118200.0,1e-08]
[1755178250255,2.07803076,118210.0,118200.0,1e-08]
[1755178250425,1.74403076,118210.0,118200.0,1e-08]
[1755178250665,0.44086822,118210.0,118200.0,1e-08]
[1755178251080,0.22607453,118160.0,118150.0,0.025393]
[1755178251287,0.30879778,118160.0,118150.0,0.025393]
[1755178252343,0.96037905,118160.0,118150.0,0.025393]
[1755178253161,0.29634876,118160.0,118150.0,0.028393]
[1755178254035,0.94793003,118160.0,118150.0,0.028393]
[1755178254665,0.29634876,118160.0,118150.0,0.028393]
[1755178254871,0.94793003,118160.0,118150.0,0.028393]
[1755178255103,0.94793003,118160.0,118150.0,0.003]
[1755178255104,0.51954141,118160.0,118150.0,0.003]
[1755178255338,0.52275141,118160.0,118150.0,0.003]
[1755178255544,1.11142003,118160.0,118150.0,0.003]
[1755178255952,1.10821003,118160.0,118150.0,0.003]
[1755178256959,1.11142003,118160.0,118150.0,0.003]
[1755178258011,0.20865417,118140.0,118130.0,0.025398]
[1755178258192,0.2086685,118130.0,118120.0,0.0004]
[1755178258397,0.94618302,118130.0,118120.0,0.025798]
[1755178259221,1.02866745,118130.0,118120.0,0.025798]
[1755178259441,1.02966745,118130.0,118120.0,0.025798]
[1755178260202,0.12629675,118130.0,118120.0,0.025798]
[1755178260423,0.12573214,118130.0,118120.0,0.19511733]
[1755178260625,0.0403635,118130.0,118120.0,0.67120635]
[1755178261475,0.86324977,118130.0,118120.0,0.66819635]
[1755178261694,1.02240977,118130.0,118120.0,0.025798]
[1755178261846,1.19082745,118130.0,118120.0,0.025798]
[1755178262247,1.10834302,118130.0,118120.0,0.026798]
[1755178262461,1.10834302,118130.0,118120.0,0.025798]
[1755178262674,0.45676175,118130.0,118120.0,0.025798]
[1755178262874,1.11034302,118130.0,118120.0,0.025798]
[1755178263079,1.12366907,118130.0,118120.0,0.025798]
[1755178263287,1.12166907,118130.0,118120.0,0.025798]
[1755178263494,1.12166907,118130.0,118120.0,0.026798]
[1755178263699,0.20869717,118110.0,118100.0,0.0004]
[1755178263895,1.10637169,118110.0,118100.0,0.0004]
[1755178264102,1.12166112,118110.0,118100.0,0.025804]
[1755178264328,0.96150112,118110.0,118100.0,0.0004]
[1755178264532,1.12162112,118110.0,118100.0,0.0004]
[1755178264736,1.12161771,118110.0,118100.0,0.0004]
[1755178265096,1.34746969,118110.0,118100.0,0.0004]
[1755178265302,1.31716847,118110.0,118100.0,0.0004]
[1755178265529,1.31816847,118110.0,118100.0,0.0014]
[1755178265954,1.34309278,118110.0,118100.0,0.0014]
[1755178266163,0.20876888,118060.0,118050.0,0.00938573]
[1755178266386,0.20876888,118060.0,118040.0,0.00047]
[1755178266387,0.20878323,118050.0,118040.0,0.00047]
[1755178266802,1.05591526,118050.0,118040.0,0.00047]
[1755178267009,1.05916526,118050.0,118040.0,0.025883]
[1755178267425,0.21203323,118050.0,118040.0,0.025883]
[1755178267650,0.20878323,118050.0,118040.0,0.025883]
[1755178267861,0.25512904,118060.0,118040.0,0.19838709]
[1755178268074,0.10508675,118060.0,118050.0,0.51248973]
[1755178268282,0.003,118060.0,118050.0,0.62606973]
[1755178268485,0.17340538,118060.0,118050.0,0.45765]
[1755178268713,0.21276888,118060.0,118050.0,0.62399973]
[1755178268929,0.20878323,118050.0,118040.0,0.04333202]
[1755178269135,0.20878323,118050.0,118040.0,0.367883]
[1755178269349,0.20878323,118050.0,118040.0,0.027883]
[1755178269479,0.20878323,118050.0,118040.0,0.365883]
[1755178269480,0.45246648,118050.0,118040.0,0.365883]
[1755178269688,0.12608675,118050.0,118040.0,0.53531709]
[1755178269890,0.21278323,118050.0,118040.0,0.368953]
[1755178270119,0.20878323,118050.0,118040.0,0.025883]
[1755178270418,0.0393635,118050.0,118040.0,0.16990409]
[1755178270617,0.0423635,118050.0,118040.0,0.55583911]
[1755178270989,0.003,118050.0,118040.0,0.66941911]
[1755178271189,0.21178323,118050.0,118040.0,0.49691502]
[1755178271397,0.21178323,118050.0,118040.0,0.04333502]
[1755178271604,0.29775648,118050.0,118040.0,0.025886]
[1755178271806,1.14488851,118050.0,118040.0,0.025886]
[1755178272008,0.29775648,118050.0,118040.0,0.026886]
[1755178272211,0.29250648,118050.0,118040.0,0.026886]
[1755178272429,0.45362648,118050.0,118040.0,0.00047]
[1755178272645,0.0393635,118050.0,118040.0,0.17297409]
[1755178272864,0.005,118050.0,118040.0,0.62755409]
[1755178273045,0.0433635,118050.0,118040.0,0.88916636]
[1755178273279,0.004,118050.0,118040.0,0.88916636]
[1755178273706,0.17786232,118090.0,118080.0,0.16937669]
[1755178273707,0.05458207,118090.0,118080.0,0.16937669]
[1755178273914,0.05975322,118090.0,118080.0,0.16937669]
[1755178274215,0.26927843,118100.0,118080.0,0.16937669]
[1755178274216,0.3480085,118100.0,118080.0,0.00307]
[1755178274423,0.0393635,118070.0,118060.0,0.53838031]
[1755178274643,0.08272325,118100.0,118090.0,0.16936235]
[1755178274870,0.08272325,118100.0,118090.0,0.29448046]
[1755178274871,0.0393635,118100.0,118090.0,0.29448046]
[1755178275287,0.0393635,118100.0,118090.0,0.63448046]
[1755178275764,0.0393635,118110.0,118100.0,0.50934801]
[1755178275971,0.0393635,118110.0,118100.0,0.59207126]
[1755178276179,0.0393635,118110.0,118100.0,0.70872126]
[1755178276394,0.19020195,118110.0,118090.0,0.16936235]
[1755178276607,0.10811705,118100.0,118090.0,0.003]
[1755178276744,0.0423635,118100.0,118090.0,0.17236235]
[1755178276946,0.0423635,118100.0,118090.0,0.28901235]
[1755178277152,0.001,118100.0,118090.0,0.31441035]
[1755178277357,0.001,118100.0,118090.0,0.7371336]
[1755178277787,0.01791478,118120.0,118110.0,0.50933367]
[1755178277788,0.01526917,118120.0,118110.0,0.50933367]
[1755178277991,0.0393635,118140.0,118130.0,0.169305]
[1755178278195,0.0393635,118140.0,118130.0,0.332865]
[1755178278196,0.0754969,118140.0,118130.0,0.332865]
[1755178278409,0.0754969,118140.0,118130.0,0.335935]
[1755178278607,0.0754969,118140.0,118130.0,0.332865]
[1755178278811,0.05463267,118140.0,118130.0,0.335935]
[1755178279509,0.05463267,118140.0,118130.0,0.172375]
[1755178279510,0.05663267,118140.0,118130.0,0.172375]
[1755178279728,0.0393635,118130.0,118120.0,0.50930801]
[1755178279937,0.05463267,118130.0,118120.0,0.50930801]
[1755178280144,0.01526917,118130.0,118120.0,0.70868126]
[1755178280358,0.01526917,118130.0,118120.0,0.74625507]
[1755178280613,0.004,118140.0,118130.0,0.509305]
[1755178280821,0.004,118140.0,118130.0,0.71524851]
[1755178280822,1e-08,118140.0,118130.0,0.71524851]
[1755178281027,0.17509622,118200.0,118190.0,0.16921905]
[1755178281228,0.17509622,118200.0,118180.0,0.16922175]
[1755178281229,0.26828157,118200.0,118180.0,0.16922175]
[1755178281657,0.0393635,118190.0,118180.0,0.16922175]
[1755178281908,0.03279324,118190.0,118180.0,0.20417653]
[1755178282317,0.00764622,118200.0,118190.0,0.16921905]
[1755178282538,0.06775355,118210.0,118200.0,0.16920473]
[1755178282737,0.12721033,118210.0,118200.0,0.16920473]
[1755178282939,0.03279324,118210.0,118200.0,0.16920473]
[1755178283156,0.03279324,118200.0,118190.0,0.16921905]
[1755178283371,0.20199797,118200.0,118180.0,0.21363819]
[1755178283573,0.03279324,118190.0,118180.0,0.55363819]
[1755178283916,0.03279324,118190.0,118180.0,0.63843144]
[1755178284118,0.29656404,118230.0,118200.0,0.16920086]
[1755178284119,0.30411892,118230.0,118200.0,0.16920086]
[1755178284400,0.03279324,118200.0,118190.0,0.50823]
[1755178284610,0.20199797,118200.0,118190.0,0.50516]
[1755178284821,0.20199797,118200.0,118180.0,0.138965]
[1755178284822,0.20201229,118190.0,118180.0,0.138965]
[1755178285003,0.20201229,118190.0,118180.0,0.025385]
[1755178285441,0.28473554,118190.0,118180.0,0.025385]
[1755178285647,1.1805116,118190.0,118180.0,0.025385]
[1755178285872,0.33337957,118190.0,118180.0,0.025385]
[1755178286076,0.33337957,118190.0,118150.0,0.16532]
[1755178286077,0.20205525,118160.0,118150.0,0.16532]
[1755178286280,0.03279324,118160.0,118150.0,0.33766634]
[1755178286490,0.03279324,118170.0,118160.0,0.16926201]
[1755178286706,0.03279324,118170.0,118160.0,0.62591201]
[1755178286887,0.03279324,118200.0,118190.0,0.16921905]
[1755178287142,0.01165777,118210.0,118190.0,0.33816905]
[1755178287368,0.004,118210.0,118200.0,0.70942139]
[1755178287592,0.05485258,118230.0,118220.0,0.16917611]
[1755178287817,0.02205934,118240.0,118230.0,0.1691618]
[1755178288027,0.20737402,118270.0,118250.0,0.16913319]
[1755178288299,0.20737402,118270.0,118260.0,0.32598922]
[1755178288300,0.00765777,118270.0,118260.0,0.32598922]
[1755178288520,0.02971711,118290.0,118270.0,0.16910459]
[1755178288740,0.25368954,118290.0,118280.0,0.00105276]
[1755178288958,0.2316302,118290.0,118280.0,0.00105276]
[1755178289179,0.03279324,118280.0,118270.0,0.16910459]
[1755178289394,0.22868543,118300.0,118280.0,0.16909029]
[1755178289395,0.02205934,118300.0,118280.0,0.16909029]
[1755178289606,0.29545249,118310.0,118280.0,0.16909029]
[1755178289607,0.03279324,118290.0,118280.0,0.16909029]
[1755178289818,0.03279324,118290.0,118280.0,0.17216029]
[1755178290242,0.02225934,118310.0,118300.0,0.1690617]
[1755178290449,0.05502651,118310.0,118300.0,0.3356217]
[1755178290669,0.0002,118310.0,118300.0,0.7922717]
[1755178290893,0.0002,118310.0,118300.0,0.87499495]
[1755178291358,0.17759502,118380.0,118350.0,0.16898587]
[1755178291572,0.16896173,118370.0,118360.0,0.16664]
[1755178292007,0.16896173,118370.0,118350.0,0.33570587]
[1755178292218,0.16896173,118370.0,118360.0,0.00104919]
[1755178292674,0.23996528,118370.0,118350.0,0.33558906]
[1755178292887,0.168976,118360.0,118340.0,0.1774303]
[1755178293342,0.26031827,118380.0,118360.0,0.168976]
[1755178293585,0.25187348,118380.0,118360.0,0.168976]
[1755178293788,0.25627035,118380.0,118360.0,0.168976]
[1755178294229,0.00264002,118370.0,118350.0,0.17743979]
[1755178294454,0.168976,118360.0,118340.0,0.26015355]
[1755178294725,0.16899537,118350.0,118320.0,0.18049965]
[1755178294949,0.17224537,118350.0,118330.0,0.33561884]
[1755178295173,0.00325,118350.0,118340.0,0.16900456]
[1755178295396,0.00325,118350.0,118330.0,0.33561884]
[1755178295397,0.16899028,118350.0,118330.0,0.33561884]
[1755178295617,0.16897648,118360.0,118340.0,0.33576456]
[1755178295877,0.17741015,118370.0,118350.0,0.16899028]
[1755178296092,0.17161625,118360.0,118340.0,0.33576456]
[1755178296302,0.16899028,118350.0,118340.0,0.16696]
[1755178296758,0.16899028,118350.0,118320.0,0.33599301]
[1755178296759,0.16900456,118340.0,118320.0,0.33599301]
[1755178296970,0.16900456,118340.0,118310.0,0.17746233]
[1755178296971,0.16901884,118330.0,118310.0,0.17746233]
[1755178297203,0.17167427,118320.0,118310.0,0.16684]
[1755178297426,0.16903313,118320.0,118310.0,0.16684]
[1755178297634,0.16905026,118310.0,118300.0,0.16684]
[1755178297848,0.16904741,118310.0,118300.0,0.16684]
[1755178298060,0.16904741,118310.0,118300.0,0.3359017]
[1755178298275,0.00845165,118320.0,118300.0,0.40365525]
[1755178298497,0.1801266,118320.0,118300.0,0.40365525]
[1755178298707,0.16904741,118310.0,118300.0,0.3359017]
[1755178298911,0.17748546,118320.0,118300.0,0.3359017]
[1755178299120,0.16904741,118310.0,118290.0,0.1775288]
[1755178299325,0.17216741,118310.0,118300.0,0.16664]
[1755178299538,0.26020871,118320.0,118300.0,0.3357017]
[1755178299755,0.1690622,118300.0,118280.0,0.17750483]
[1755178299964,0.17216741,118310.0,118290.0,0.16648]
[1755178300177,0.26020871,118320.0,118300.0,0.1690617]
[1755178300369,0.18058978,118330.0,118310.0,0.33564741]
[1755178300620,0.09429419,118330.0,118290.0,0.17752978]
[1755178300834,0.17482683,118320.0,118300.0,0.33561795]
[1755178301087,0.00312,118320.0,118310.0,0.16904741]
[1755178301296,0.2602258,118330.0,118310.0,0.16904741]
[1755178301513,0.17167427,118320.0,118300.0,0.33561795]
[1755178301742,0.16904741,118310.0,118300.0,0.16656]
[1755178301954,0.16904741,118310.0,118280.0,0.26022808]
[1755178302169,0.16907946,118290.0,118280.0,0.16652]
[1755178302385,0.17219946,118290.0,118280.0,0.16652]
[1755178302605,0.1690904,118280.0,118270.0,0.16648]
[1755178302827,0.16909029,118280.0,118270.0,0.33558459]
[1755178303042,0.16907946,118290.0,118270.0,0.33558459]
[1755178303258,0.2602654,118300.0,118280.0,0.17014305]
[1755178303478,1.18561944,118310.0,118280.0,0.16909029]
[1755178303479,0.33836741,118310.0,118280.0,0.16909029]
[1755178303692,0.16907599,118290.0,118270.0,0.34403981]
[1755178303900,0.16907599,118290.0,118270.0,0.33558459]
[1755178304124,0.26335803,118300.0,118280.0,0.16909029]
[1755178304337,0.00264181,118290.0,118280.0,0.16909029]
[1755178304759,0.1717178,118290.0,118270.0,0.33558459]
[1755178304969,0.26335803,118300.0,118280.0,0.16909029]
[1755178305178,0.26335803,118300.0,118270.0,0.34403981]
[1755178305179,0.1717178,118290.0,118270.0,0.34403981]
[1755178305392,0.16907599,118290.0,118280.0,0.16661029]
[1755178305609,0.16909029,118280.0,118270.0,0.19446759]
[1755178305826,0.25493354,118280.0,118270.0,0.025363]
[1755178306041,0.16912301,118260.0,118230.0,0.1690837]
[1755178306285,0.16912301,118260.0,118240.0,0.36147642]
[1755178306712,0.01157522,118270.0,118250.0,0.17026075]
[1755178306927,0.16911889,118260.0,118250.0,0.16913319]
[1755178307136,0.16911889,118260.0,118240.0,0.36993379]
[1755178307379,0.16913319,118250.0,118240.0,0.36993379]
[1755178307584,0.16913319,118250.0,118240.0,0.192129]
[1755178308024,0.17225319,118250.0,118240.0,0.025369]
[1755178308240,0.17225319,118250.0,118230.0,0.16668]
[1755178308241,0.16915822,118240.0,118230.0,0.16668]
[1755178308458,0.16915822,118240.0,118230.0,0.192052]
[1755178308923,0.16911889,118260.0,118240.0,0.16914749]
[1755178309139,0.17755981,118270.0,118250.0,0.33678075]
[1755178309355,0.16913319,118250.0,118240.0,0.1668]
[1755178309568,0.17113319,118250.0,118240.0,0.33594749]
[1755178309785,0.17113319,118250.0,118240.0,0.1668]
[1755178310020,0.17113319,118250.0,118230.0,0.025372]
[1755178310021,0.16914749,118240.0,118230.0,0.025372]
[1755178310450,0.17226749,118240.0,118230.0,0.025372]
[1755178310658,0.16914749,118240.0,118230.0,0.025372]
[1755178310877,0.17225319,118250.0,118230.0,0.1945338]
[1755178311085,0.16914749,118240.0,118230.0,0.1945338]
[1755178311339,0.16913319,118250.0,118240.0,0.16914749]
[1755178311553,0.16913319,118250.0,118230.0,0.1945338]
[1755178311766,0.16913319,118250.0,118240.0,0.17027549]
[1755178311981,0.16911889,118260.0,118250.0,0.16913319]
[1755178312218,0.16911889,118260.0,118250.0,0.16656]
[1755178312641,0.16914571,118250.0,118230.0,0.19453357]
[1755178312787,0.17426571,118250.0,118230.0,0.36105284]
[1755178313242,0.16914571,118250.0,118230.0,0.3610538]
[1755178313453,0.16914749,118240.0,118230.0,0.191892]
[1755178313786,0.16914749,118240.0,118230.0,0.025372]
[1755178314040,0.16917357,118230.0,118210.0,0.33542947]
[1755178314250,1.02785689,118240.0,118220.0,0.19567829]
[1755178314251,1.46229969,118240.0,118220.0,0.19567829]
[1755178314458,0.44602,118240.0,118230.0,0.1691618]
[1755178314663,0.16914571,118250.0,118240.0,0.16914749]
[1755178314664,0.33521319,118250.0,118240.0,0.16914749]
[1755178314866,0.34869483,118260.0,118240.0,0.16914749]
[1755178315085,0.00512,118260.0,118250.0,0.16913319]
[1755178315298,0.16913319,118250.0,118230.0,0.3361218]
[1755178315515,0.16914793,118240.0,118220.0,0.36888897]
[1755178315736,0.17180495,118230.0,118220.0,0.025375]
[1755178315953,1.01939996,118240.0,118220.0,0.19455111]
[1755178315954,1.09900321,118240.0,118220.0,0.19455111]
[1755178316170,0.17180495,118230.0,118220.0,0.025375]
[1755178316402,0.1722818,118230.0,118220.0,0.025375]
[1755178316799,0.00312,118230.0,118220.0,0.025375]
[1755178316999,0.25187118,118240.0,118220.0,0.19567983]
[1755178317236,0.25187118,118240.0,118220.0,0.19455111]
[1755178317445,0.17180495,118230.0,118220.0,0.025375]
[1755178317664,0.1691618,118230.0,118220.0,0.19555111]
[1755178318043,0.1691618,118230.0,118220.0,0.026375]
[1755178318251,0.42075118,118240.0,118220.0,0.36443983]
[1755178318460,0.42075118,118240.0,118220.0,0.36131111]
[1755178318672,0.16914793,118240.0,118230.0,0.1691618]
[1755178318916,0.16914749,118240.0,118230.0,0.1691618]
[1755178319133,0.1691618,118230.0,118220.0,0.025375]
[1755178319373,1.26749708,118230.0,118220.0,0.025375]
[1755178319590,0.16920473,118200.0,118190.0,0.33473869]
[1755178319800,0.16520473,118200.0,118190.0,0.33473905]
[1755178320003,0.18059035,118200.0,118180.0,0.34312231]
[1755178320280,0.18059035,118200.0,118190.0,0.19459905]
[1755178320507,0.01538562,118200.0,118190.0,0.7218926]
[1755178320733,0.01538562,118200.0,118190.0,0.81368913]
[1755178320990,0.01538562,118200.0,118190.0,0.62639558]
[1755178321217,0.01538562,118200.0,118190.0,0.2773223]
[1755178321445,0.01338562,118200.0,118190.0,0.19459905]
[1755178321676,0.01338562,118200.0,118190.0,0.19757905]
[1755178321901,0.01338562,118200.0,118190.0,0.20701604]
[1755178322125,0.01438562,118200.0,118190.0,0.66757604]